{"text_format":"1","workbook":"xlsx","n_sheets":2,"sheets":["COTIZACION","CLIENTES"],"not_rendered":{"charts":0,"images":1,"macros":1,"external_links":0,"defined_names":6,"comments":0,"pivot_tables":0},"unopened":[],"bounds":{"document_bytes":16777216,"sheet_cells":100000,"rows_first":2000,"rows_last":500,"rows_between":2000,"halvings":0,"cell_chars":16384,"cell_head_chars":4096},"cells_cut":0,"cells_raw":0,"read":"whole","date_system":"1900"}

{"sheet":"COTIZACION","index":0,"n_rows":33,"n_cols":18,"rows_kept":33,"cut":false,"hidden":false,"merged":[[9,2,9,4],[10,2,10,4],[7,1,7,2],[4,4,4,9],[5,5,5,7],[6,5,6,7],[7,5,7,7]]}
[null,null,null,null,null,null,null,null,null,"COTIZACION"]
[null,null,null,null,null,null,null,null,null,3177]
[]
[null,"RUT",null,null,"DIRECCION",null,null,null,"TELEFONO"]
[]
[null,"EMPRESA: ",null,"ELECTROLUX","COMUNA","MAIPU"]
[null,"GIRO: ",null,null,"CIUDAD","SANTIAGO",null,null,"CONTACTO: "]
[null,"FORMA DE PAGO",null,"30 DIAS OC","VENDEDOR","GABRIEL CUCOCH",null,null,"FECHA",{"$f":"TODAY()","v":"2015-10-20"}]
[null,null,null,null,null,null,null,null,null,null,null,null,null,null,null,null,"COSTO","OFERTA"]
[null,"item","Descripcion producto",null,null,"cantidad","unidad","precio","dscto","total","ITEM",null,null,null,null,"%","VENTA","VENTAFINAL"]
[null,1,"ACOPLE CAMLOCK TIPO C 1\"",null,null,28,"unidad",3090,0,{"$f":"F11*H11*(1-I11/100)","v":86520},1,null,null,null,null,1.5,null,{"$f":"Q11*P11","v":0}]
[null,2,"ACOPLE CAMLOCK TIPO F 1\"",null,null,14,"unidad",1910,0,26740,2,null,null,null,null,1.5,null,{"$f":"Q12*P12","v":0}]
[null,null,null,null,null,null,null,null,null,null,3,null,null,null,null,1.5,null,0]
[null,null,null,null,null,null,null,null,null,null,4,null,null,null,null,1.5,null,0]
[null,null,null,null,null,null,null,null,null,null,5,null,null,null,null,1.5,null,0]
[null,null,null,null,null,null,null,null,null,null,6,null,null,null,null,1.5,null,0]
[null,null,null,null,null,null,null,null,null,null,7,null,null,null,null,1.5,null,0]
[null,null,null,null,null,null,null,null,null,null,8,null,null,null,null,1.5,null,0]
[null,null,null,null,null,null,null,null,null,null,9,null,null,null,null,1.5,null,0]
[null,null,null,null,null,null,null,null,null,null,10,null,null,null,null,1.5,null,0]
[null,null,null,null,null,null,null,null,null,null,11,null,null,null,null,1.5,null,0]
[null,null,null,null,null,null,null,null,null,null,12,null,null,null,null,1.5,null,0]
[null,null,null,null,null,null,null,null,null,null,13,null,null,null,null,1.5,null,0]
[null,null,null,null,null,null,null,null,null,null,14,null,null,null,null,1.5,null,0]
[null,null,null,null,null,null,null,null,null,null,15,null,null,null,null,1.5,null,0]
[null,null,null,null,null,null,null,null,null,null,16,null,null,null,null,1.5,null,0]
[null,null,null,null,null,null,null,null,null,null,17,null,null,null,null,1.5,null,0]
[null,null,null,null,null,null,null,null,null,null,18,null,null,null,null,1.5,null,0]
[null,"OBSERVACIONES:",null,"DISPONIBILIDAD INMEDIATA PREVIA CONFIRMACION",null,null,"neto",null,null,{"$f":"SUM(J11:J28)","v":113260}]
[null,null,null,null,null,null,"dscto",null,null,{"$f":"J29*I30","v":0}]
[null,null,null,null,null,null,"subtotal",null,null,{"$f":"J29-J30","v":113260}]
[null,null,null,null,null,null,0.19,null,0.19,{"$f":"J31*I32","v":21519.4}]
[null,null,null,null,null,null,"total",null,null,{"$f":"J31+J32","v":134779.4}]

{"sheet":"CLIENTES","index":1,"n_rows":286,"n_cols":13,"rows_kept":286,"cut":false,"hidden":false,"merged":[]}
["item","RUT","EMPRESA","GIRO","DIRECCION","COMUNA","CIUDAD","FPAGO","CONTACTO","CELULAR","TELEFONO","CORREO","VENDEDOR"]
[1,"99.534.520-K","AESSEAL CHILE S.A.","SELLOS MECANICOS","Av Suecia 84, ofic 143","PROVIDENCIA","SANTIAGO",null,"Daniela Arenas",null,"2-2343022","darenas@aesseal.cl","GABRIEL"]
[2,"61.808.000-5","AGUAS ANDINAS",null,"Pintor Cicarelli,  291","SAN JOAQUIN","SANTIAGO",null,"Rodolfo Thiers",null,"2-688 1000","rthiers@aguasandinas.cl"]
[3,"96.954.690-6","AGUAS Y RILES","PROCESOS DE AGUA","Calle Nueva  # 1661","HUECHURABA","SANTIAGO",null,"Christian Salas",null,"2-580 1300","Christian.salas@aguasyriles.cl"]
[4,"84.156.500-2","ALIMENTOS FRUNA LTDA.",null,"camino a  Melipilla 11246","CERRILLOS","STGO",null,"Ivan Farias",null,"2-533 0080","i_farias@fruna.cl","hugo "]
[5,"84.156.500-2","ALIMENTOS FRUNA LTDA.",null,"Av. Americo Vespucio Norte  1361","CERRILLOS","STGO",null,"Jorge Romo",null,"2-533 8154","jromo@fruna.cl","hugo "]
[6,"78.769.930-8","ALLEN S.A.","IMPORTACIONES","EDUARDO MATTE 1830","SANTIAGO CENTRO","SANTIAGO","EFECTIVO","EMANUELLE",61593620,"2-5546037","EMREYES@ALLEN.CL","ALDO"]
[7,"96.956.680-K","ALUSA FABRICACION  ENV. FLEXIBLES",null,null,null,"STGO"]
[8,"91.410.000-3","AMERICAN SCREW",null,"Camino Melipilla 1338","CERRILLOS","STGO",null,"Jeanette Millar",null,"2-440 7029","jeanette.millar@amscrew.cl"]
[9,"77.762.940-9","ANGLO AMERICAN",null,null,null,"STGO",null,"Guillermo Cortés",null,"2-365 8468","gfcortes@anglochile.cl"]
[10,"80.893.200-8","ARRIGONI",null,null,"HUECHURABA","STGO",null,"Claudio Valencia",null,"2-485 0000","cvalencia@arrigoni.cl","ana"]
[11,"80.893.200-8","ARRIGONI",null,"Caupolican 9550 ,","HUECHURABA","STGO",null,"Miguel Pardo",null,"2-485 0000","m.pardo@arrigoni.cl","ana"]
[12,"80.893.200-8","ARRIGONI METALURGICA",null,"Caupolican   9.550","QUILICURA","STGO",null,"Guillermo Martinez","7-579 8115","2-4850156","gmartinez@arrigoni.cl","ana"]
[13,"76.878.580-5","BOMBATEK",null,"Av. Galvarino 7701-Parque Industrial Aconcagua","QUILICURA","STGO",null,"German Pacheco Zambrano","9-434 7040","2-484 8300","gpacheco@bombatek.cl"]
[14,"91.666.000-6","CERESITA","PINTURAS","Gabriel Palma  # 820","RECOLETA","STGO",null,"Ma Soledad Gaete/Marcos Novoa",null,"2-584 9215","sgaete@ceresita.cl/ mnova@ceresita.cl"]
[15,"2.937.788-K","CESAR SANDOVAL",null,null,null,"STGO",null,null,null,null,null,"paula"]
[16,"76.178.626-1","CHILETRONICS",null,null,null,"STGO",null,null,null,null,null,"paula"]
[17,"96.801.810-8","CIMM",null,"Las Esteras Norte 2501","QUILICURA","STGO",null,"M Veronica Barrios","8-219 1565","2-586 4591","mbarrios@cimm-tys.cl"]
[18,"80.853.400-2","CLARIANT",null,"Camino  Melipilla  15170,  Maipu","CERRILLOS","STGO",null,"Norberto Galdo",null,"2-373 4100","Norberto.Galdo@clariant.com"]
[19,"90.753.000-0","CLINICA SANTA MARIA","CLINICA",null,"PROVIDENCIA","STGO",null,"Armando Jofre",null,"2-913 3280","ajofre.pintel@csm.cl+"]
[20,"96.532.330-9","CMPC CELULOSA S.A",null,null,"SANTIAGO","STGO",null,"Nelson Hidalgo",null,"2-441 2475","nhidalgo@gerencia.cmpc"]
[21,"95.304.000-K","CMPC MADERAS S.A",null,null,"SANTIAGO","STGO",null,"Geraldine Aenishanslin",null,"2-441 2569","gaenishanslin@gerencia.cmpc.cl"]
[22,"96529310-8","CMPC TISSUE S.A",null,null,null,"RANCAGUA",null,"jorge soto",null,"72-491525",null,"gabriel"]
[23,"96.974.100-8","CODEPACK",null,"Parinacota  381  -  Galpon 9  -  Modulo 9","QUILICURA","STGO",null,null,null,"2-739 0029"]
[24,"96.528.000-6","COLADA CONTINUA CHILENA",null,"Av. Las Esteras Sur N°2850","QUILICURA","STGO",null,"Manuel Rojas ","9-997 2427","2-623 8668","MROJAS@COLADACONTINUA.CL","gabriel"]
[25,"94.086.000-8","CORRUPAC",null,"La Victoria 0465","LA GRANJA","STGO",null,"Lorena Godoy Aliaga","8-920 8796","2-510 1870","lgodoy@corrupac.cl"]
[26,"90.331.000-6","CRISTALERIAS DE CHILE",null,"Av. Apoquindo 3669","LAS CONDES","STGO",null,"Ricardo Faundez",null,"2-787 8712",null,"paula"]
[27,"93.372.000-4","CRISTALERIAS TORO",null,"Calle Dagoberto Godoy   182","CERRILLOS","STGO",null,"Ricardo Munizaga",null,"2-437 4500","r.munizaga@cristoro.cl","paula"]
[28,"77.704.340-4","DAILY FRESH",null,"El Quillay 573, Pque. Ind, valle grande , ","LAMPA","STGO",null,"Cristian Barahona ","8-239 5145","2-411 9100","c.barahona@dailyfresh.cl"]
[29,"99.538.350-0","DIMENSION S.A.","MAQUINARIA",null,"LO ESPEJO","STGO",null,"Pablo Rosas","7-809 0271",null,"prosas@dimension.cl","gabriel"]
[30,"85.918.900-8","DINAGAL",null,"Sta Monica 03490 -  Puerta sur","SAN BERNARDO","STGO",null,"Adolfo Galindo",null,"2-854 2555","agalindo@dinagal.cl"]
[31,"96.824.110-9","DISAL",null,"Santa Margarita 0841",null,"STGO",null,"Ricardo  Ortiz Carrasco","9-919 1759","2-726 4200"]
[32,"96.951.690-K","DISTRIBUIDORA SUIZA",null,"Parcela  37 abrazo de Maipu","CERRILLOS","STGO",null,"Francisco Valeria",null,"2-535 6034","bodega@disuiza.cl","ana y paula"]
[33,"78.334.740-7","DPA",null,"Ingeniero Budge  1065 ","SAN MIGUEL","STGO",null,"Pablo Urrutia",null,"2-551 4607","purrutia@dpa.cl"]
[34,"76.106.641-2","DUEIK",null,null,null,"STGO",null,"Francisco astorga",null,"2-730 0800","f.astorga@dueik.cl","gabriel"]
[35,"78.202.930-4","ELECTRO QUALITY",null,null,null,"STGO",null,null,null,null,null,"paula"]
[36,"16.265.013-0","EMANUELLE S.A.","COMERCIAL","MONSEÑOR CARLOS CASANUEVA 10417","LA FLORIDA","SANTIAGO","EFECTIVO","EMANUELLE",61593620,"2-5544250","EMREYES@ALLEN.CL","ALDO"]
[37,"96.591.040-9","EMPRESA CAROZZI",null,"Pte.Jorge Alessandri Rodriguez  5201  Nos","SAN BERNARDO","STGO",null,"Mauricio Rodriguez",null,"2-377 6719","mrodriguez@carozzi.cl"]
[38,"96.928.510-K","EMPRESAS LIPIGAS",null,null,null,"STGO",null,null,null,null,null,"paula"]
[39,"4.282.209-4","FERNANDO VIDELA",null,null,null,"STGO",null,null,null,null,null,"paula"]
[40,"99.542.980-2","FOOD CCU","ALIMENTICIA",null,"LA REINA","STGO",null,"Lucas Sanchez",null,null,null,"gabriel"]
[41,"76.107.630-2","GAS LICUADO MOTOR",null,null,null,"STGO",null,null,null,null,null,"paula"]
[42,"96.568.740-8","GASCO GLP S.A.",null,null,null,"STGO",null,null,null,null,null,"paula"]
[43,"76.142.730-K","GEMCO","FARMACEUTICA","Diagonal Paraguay  494","PROVIDENCIA","STGO",null,null,null,"2-979 9350","GEMCO@GEMCO.CL","gabriel"]
[44,"93.545.000-4","GEOTEC",null,"Lo Campino 432","QUILICURA","STGO",null,"Roberto Guajardo Muñoz","7-888 6825","2-620 7758","rguajardo@geotec.cl"]
[45,"96.828.120-8","GESTION Y SERVICIOS",null,null,null,"STGO",null,"Christian Ugatti",null,"2-496 4328","cugatti@gestionyservicios.cl"]
[46,"92.846.000-2","HARTING","QUIMICA",null,"QUILICURA","STGO",null,"Sergio Gracia/Jorge Jeldres",null,null,"panol@harting.cl/sgracia@hating.cl","gabriel"]
[47,"76.026.558-6","I&S INGENIERIA",null,"Volcan Lascar Oriente 741, Pudahuel","PUDAHUEL","STGO",null,"Jose Marín Castillo",null,"2-887 2700/10","jmarin@isventec.cl","katty"]
[48,"77.965.620-9","ICB FOOD SERVICE",null,null,null,"STGO",null,null,null,null,null,"hugo "]
[49,"76.451.180-8","IMA INDUSTRIAL LTDA. Y PROYECTO",null,"Alarife Gamboa  013, Providencia","PROVIDENCIA","STGO",null,null,null,"2-499 8200"]
[50,"77.868.830-1","IMPREVAL",null,null,null,"STGO",null,"Antonio Medina","9-490 5229","2-511 6901","impreval@hotmail.com"]
[51,"96.808.700-2","ING H. BERMAD ANDINA",null,null,null,"STGO"]
[52,"81.527.100-9","INRA REFRIGERACION","REFRACTARIOS","Camino El Villarrio-  Parcela 20","CALERA DE TANGO ","STGO",null,"Aquilez Manriquez/Jose Vasquez",null,"2-855 3020","BODEGA@INRAFRIGO.CL"]
[53,"96.877.680-0","JUAN  BAS  ALIMENTOS",null,"calle Galvarino 9601, ","QUILICURA","STGO",null,"Cristian Mejias",null,"2-490 1914",null,"hugo "]
[54,"96.843.130-7","KOMATSU",null,"Av Americo Vespucio 0631",null,"STGO",null,"Alejandro Burgos","9-827 0924","2-655 7449","alejandro.burgos@komatsu.cl"]
[55,"96.843.130-7","KOMATSU",null,null,null,"STGO",null,"Héctor Titichoca",null,"34-495150/497288","hector.titichoca@komatsu.cl"]
[56,"91.650.000-9","LABORATORIOS SAVAL","FARMACEUTICA",null,"CONCHALI","STGO",null,"Alex Bermudez","8-512 2887","2-707 3000","ABERMUDEZ@SAVAL.CL","gabriel"]
[57,"96.568.370-4","LUCCHETTI","ALIMENTICIA",null,"SAN JOAQUIN","STGO",null,"Carolina Saldias/Claudio Villagra","8-439 6430","2-599 7926","AACEVEDO@TMLUC.COM/CVILLAGRA@TMLUC.COM"]
[58,"76.009.053-0","MADECO",null,null,null,"STGO"]
[59,"76.203.160-4","MAESTRANZA HEREDIA",null,"Venus   1310","QUINTA NORMAL","STGO",null,"Carlos Heredia",null,"2-773 0993/8834","carlosheredia@herediahermanos.cl"]
[60,"78.924.940-7","MANTENCION INDUSTRIALES Y CIA.",null,null,null,"STGO",null,"Juan Parada/Marco Figueroa/Jose Perez",null,"2-8318924"]
[61,"96.967.010-0","MAQSA",null,null,null,"STGO",null,"Mauricio C Michael Fernandez","9-099 6026","2-422 9635","mmichael@maqsa.cl"]
[62,"96.532.730-4","MICROTEC S.A",null,null,null,"STGO",null,"Ariel Lopez","9-949 6214","2-424 8369","ariel.lopez@micro.cl"]
[63,"93.628.000-5","MOLYMET",null,"Camino Nos - Los Morros","SAN BERNARDO","STGO",null,"David Videla Cortes",null,"2-937 6849","david.videla@molymet.cl"]
[64,"13.047.088-2","MPF CONSTRUCTORA",null,null,null,"STGO",null,null,null,null,null,"paula"]
[65,"90.703.000-8","NESTLE  v. mackenna",null," Vic. Mackenna 4230","SAN JOAQUIN","STGO",null,"Guillermo Cereceda",null,"2-550 6425","guillermo.cereceda@cl.neltle.com","paula"]
[66,"77.868.250-8","NEW SYSTEM LTDA",null,"Calle Puerta Sur 0321 of.Parque Industrial","SAN BERNARDO","STGO",null,"Manuel Aracena",null,"2-481 1154","logistica@newvac.cl","paula"]
[67,"96.545.900-6","PANIMEX QUIMICA",null,"Av. Eduardo Frei Montalva  8710","QUILICURA","STGO",null,"Robinson Contreras",null,"2-470  4900","mantencion@panimex.cl","gabriel"]
[68,"77.830.430-9","PAREXCHILE LTDA","CEMENTO","Puerto Montt 3235","RENCA","STGO",null,"Quenet Gomero",null,"2-328 9900","quenet.gomero@parexchile.cl"]
[69,"83.574.800-6","PATRICIO LIOI Y CIA. LTDA.",null,"Los Yacimientos  561","MAIPU","STGO",null,"Hernan Herrera",null,null,null,"gabriel"]
[70,"93.933.000-3","PETREOS","CEMENTERA",null,"SAN JOAQUIN","STGO",null,"Raul Gonzalez/Francisco Salinas",null,null,null,"gabriel"]
[71,"92.154.000-0","PETROBRAS",null,null,"MAIPU","STGO",null,"Antonio","7-604 7192",null,null,"gabriel"]
[72,"93.305.000-9","PIMASA",null,"Calle Nueva   1725","HUECHURABA","STGO",null,null,null,"2-499 1000","RECEPCION@PIMASA.COM"]
[73,"83.474.400-7","PINTO Y GAJARDO  S.A.",null,null,null,"STGO",null,null,null,null,null,"paula"]
[74,"76.437.150-K","PLASTRO MINING",null,"Cerro Santa Lucia 9990","QUILICURA","STGO",null,"Antonio Martinez",null,"2-738 5300/446 4444","amartinez@johndeerewater.com","paula"]
[75,"96.833.680-0","PROD. INDUSTRIALES",null,null,null,"STGO",null,null,null,null,null,"paula"]
[76,"79.749.790-8","PROEXA",null,"Jorge Hirmas   2690","RENCA","STGO",null,"Luis Finschi"]
[77,"76.941.810-5","RED TEC","ARRIENDO DE PALETS",null,"LAMPA","STGO",null,"Elvis Herrera"]
[78,"79.897.380-0","REINIKE",null,null,"HUECHURABA","STGO",null,"Rodolfo Urquidi","9-718 0592","2-490 1895","COMPRAS@REINIKE.CL"]
[79,"77.479.980-K","RIEGO PLAS",null,"Santa Marta   1501","MAIPU","STGO",null,"Fernando Manriquez",null,null,"FMANRIQUEZ@RIEGOPLAS.CL"]
[80,"99.547.270-8","SEAL SERVICE","INSUMOS A MINERAS","Francisco Bilbao   6916","LAS CONDES","STGO",null,"Gustavo Barckhahn",null,"2-776 1048"]
[81,"77.926.810-1","SERPROGAS","GAS",null,null,"STGO",null,"Wilson Oteiza",null,null,null,"gabriel"]
[82,"80.914.400-3","SGS",null,null,null,"STGO",null,"Robinson Aliaga","9-430 2899","2-623 1828","robinson.aliaga@sgs.com"]
[83,"91.915.000-9","SIGDO KOPPERS",null,null,"LAS CONDES","STGO",null,"Sandro Tavonatti",null,"2-241 5267","sandro.tavonatti@skcchile.cl"]
[84,"91.915.000-9","SIGDO KOPPERS",null,null,"LAS CONDES","STGO",null,"Raul Maldonado",null,"2-241 5394","raul.maldonado@skcchile.cl"]
[85,"76.410.610-5","SKC MAQUINARIAS",null,null,null,"STGO"]
[86,"96.517.990-9","SKC RENTAL",null,null,null,"STGO"]
[87,"78.610.300-2","SOC.COM.VALARCO",null,null,null,"STGO",null,null,null,null,null,"paula"]
[88,"96.717.620-6","SOC.ELECTRICA STGO.",null,null,null,"STGO",null,null,null,null,null,"paula"]
[89,"76.101.812-4","SOPROLE ","ALIMENTICIA",null,"SAN BERNARDO","STGO",null,"Ramon Araya",null,null,"RAMON.ARAYA@SOPROLE.CL","gabriel"]
[90,"93.654.000-7","SPES LTDA.","ALIMENTICIA",null,"CONCHALI","STGO",null,"Oscar Paredes","9-842 0256",null,"OPAREDES@SPES.CL","gabriel"]
[91,"78.737.740-8","SPRAYING SISTEMS","INSUMOS A MINERAS",null,"PROVIDENCIA","STGO",null,"Francoise Peralta","9-158 7209","2-274 7313","fperalta@ssco.cl","gabriel"]
[92,"96.906.060-4","SWEDMAQ",null,"Vista Hermosa   9999","CERRILLOS","STGO",null,"Alejandro Herrera",null,"2-538 5507","aherrera@maquinas.cl"]
[93,"79.553.940-9","TECHNO REFRACTARIOS S.A.",null,"Camino Santa Teresa   Km  19 1/2 ","LAMPA","STGO",null,"Gonzalo Cabezas",null,"2-745 3613","REFRA@IUNGE.CL"]
[94,"76.667.880-7","TECVAL",null,null,null,"STGO",null,"Mauricio Fortune","9-342 5823","2-411 6100","mfortune@tecval.cl"]
[95,"78.976.570-7","TERMOVENT",null,"El Otoño 725   -  El Tranqueral","LAMPA","STGO",null,"Fernando Cadiz Araya",null,"2-745 3441","F.CADIZ@TERMOVENT.CL"]
[96,"96.895.560-8","TPI",null,"Panamericana Norte   9301","QUILICURA","STGO",null,"Patricio Villalobos","9-289 1707","2-463 8000"]
[97,"96.858.280-1","TRANSITAL ASSA",null,"Pedro Aguirre Cerda  6697","CERRILLOS","STGO",null,"Carlos Sensacua",null,null,null,"gabriel"]
[98,"79.918.390-0","TRIO S.A.","ALIMENTICIA","Calle Esquina Blanca  1117","MAIPU","STGO",null,"Rodolfo Araya/Nestor Segovia",null,null,"RARAYA@TRIOGROUP.CL","gabriel"]
[99,"96.531.390-7","VIÑA  SANTA EMA",null,"Izaga 1096   y la bodega en Balmaceda 1950","ISLA DE MAIPO","STGO",null,"Hector de La Cuadra  / Pedro Astorga",null,"2-663 7110/1096","hdelac@santaema.cl","paula"]
[100,"93.899.000-K","VITAL S.A.","ALIMENTICIA",null,"PUDAHUEL","STGO",null,"Carlos Maureira","7-988 4168",null,null,"ana"]
[101,"93.913.000-4","VOGT",null,"Álvarez  de Toledo Nº 669 ","SAN MIGUEL","STGO",null,"Carlos Acevedo",null,"2-829 1200","carlos.acevedo@vogt.cl"]
[102,"84.356.800-9","WATTS   Lonquén",null,null,"SAN BERNARDO","STGO",null,"Victor Santibañez",null,"02-441 4111","vsantiba@watts.cl","hugo "]
[103,"88.325.800-2","XTRATA COPPERS",null,null,null,"STGO"]
[104,"96.953.700-1","XTREME MINING","MAQUINARIA","Panamericana Norte   9500 ","QUILICURA","STGO",null,"Alejandro ","7-775 7806","2-912 3110",null,"ana y paula"]
[105,"96.533.660-5","ERAL CHILE LTDA.","INGENIERIA Y FABRICACION DE EQUIPOS PARA LA MINERIA","Av. San Sebastian 2877 Of. 712","LAS CONDES","STGO","30 DÍAS"]
[106,"76.163.495-k","CTI S.A.","FABRICACION DE OTROS PRODUCTOS ELABORADOS DE METAL N.C.P.","Alberto llona 777","MAIPU","STGO",null,"José Fierro",null,"2-8376000","jose.fierro@elextrolux.cl"]
[107,"96.550.820-1","METALPAR S.A.","COMERCIALIZADORA DE BUSES","Camino Melipilla 9236","MAIPU","STGO",null,"Jaime Cabello/mauricio Silva",null,"2-3682000",null,"Gloria"]
[108,"79.677.100-3","FERROCENTRO MAESTRANZA LTDA.","MAESTRANZA","Calle Vicente Reyes 840","MAIPU","STGO",null,"Maria Soto/José Araya",null,"2-8364920","abastecimiento@ferrocentro.cl","Gloria Aguayo"]
[109,"0000-0","VULCO",null,null,null,null,null,"Eduardo Fernandez"]
[110,"89.696.400-3","Resiter S.A.",null,"Los Conquistadores 2752","PROVIDENCIA","STGO","30 DIAS","Susana Tromilen",null,null,"stromilen@resiter.cl"]
[111]
[112]
[113]
[114]
[115]
[116]
[117]
[118]
[119]
[120]
[121]
[122]
[123]
[124]
[125]
[126]
[127]
[128]
[129]
[130]
[131]
[132]
[133]
[134]
[135]
[136]
[137]
[138]
[139]
[140]
[141]
[142]
[143]
[144]
[145]
[146]
[147]
[148]
[149]
[150]
[151]
[152]
[153]
[154]
[155]
[156]
[157]
[158]
[159]
[160]
[161]
[162]
[163]
[164]
[165]
[166]
[167]
[168]
[169]
[170]
[171]
[172]
[173]
[174]
[175]
[176]
[177]
[178]
[179]
[180]
[181]
[182]
[183]
[184]
[185]
[186]
[187]
[188]
[189]
[190]
[191]
[192]
[193]
[194]
[195]
[196]
[197]
[198]
[199]
[200]
[201]
[202]
[203]
[204]
[205]
[206]
[207]
[208]
[209]
[210]
[211]
[212]
[213]
[214]
[215]
[216]
[217]
[218]
[219]
[220]
[221]
[222]
[223]
[224]
[225]
[226]
[227]
[228]
[229]
[230]
[231]
[232]
[233]
[234]
[235]
[236]
[237]
[238]
[239]
[240]
[241]
[242]
[243]
[244]
[245]
[246]
[247]
[248]
[249]
[250]
[251]
[252]
[253]
[254]
[255]
[256]
[257]
[258]
[259]
[260]
[261]
[262]
[263]
[264]
[265]
[266]
[267]
[268]
[269]
[270]
[271]
[272]
[273]
[274]
[275]
[276]
[277]
[278]
[279]
[280]
[281]
[282]
[283]
[284]
[285]